[Event "Titled Tuesday Blitz January 17 Early 2023"]
[White "Vovk, Orest"]
[Black "Fernandez Siles, Luis"]
[WhiteFideId "14113490"]
[BlackFideId "2209420"]
[WhiteElo "2315"]
[BlackElo "2218"]
[Result "1-0"]
[Round "03"]
[TimeControl "180+2"]
[Date "2023.01.17"]
[WhiteClock "0:01:06"]
[BlackClock "0:00:28"]

1. h4 {[%clk 0:02:55]}  d5 {[%clk 0:02:54]} 2. h5 {[%clk 0:02:49]}  h6 {[%clk 0:02:50]} 3. e4 {[%clk 0:02:48]}  dxe4 {[%clk 0:02:43]} 4. Nc3 {[%clk 0:02:48]}  Nf6 {[%clk 0:02:41]} 5. Qe2 {[%clk 0:02:47]}  Nc6 {[%clk 0:02:40]} 6. Nxe4 {[%clk 0:02:46]}  Nxe4 {[%clk 0:02:28]} 7. Qxe4 {[%clk 0:02:47]}  Qd4 {[%clk 0:02:23]} 8. Qxd4 {[%clk 0:02:46]}  Nxd4 {[%clk 0:02:23]} 9. Bd3 {[%clk 0:02:47]}  Bf5 {[%clk 0:02:21]} 10. Bxf5 {[%clk 0:02:46]}  Nxf5 {[%clk 0:02:22]} 11. Nf3 {[%clk 0:02:46]}  e6 {[%clk 0:02:17]} 12. d4 {[%clk 0:02:45]}  Bd6 {[%clk 0:02:14]} 13. Be3 {[%clk 0:02:37]}  O-O-O {[%clk 0:02:12]} 14. O-O-O {[%clk 0:02:36]}  Rhe8 {[%clk 0:01:59]} 15. g4 {[%clk 0:02:34]}  Nxe3 {[%clk 0:01:51]} 16. fxe3 {[%clk 0:02:33]}  f6 {[%clk 0:01:52]} 17. Nh4 {[%clk 0:02:26]}  c6 {[%clk 0:01:44]} 18. c4 {[%clk 0:02:22]}  e5 {[%clk 0:01:42]} 19. d5 {[%clk 0:02:15]}  Bc5 {[%clk 0:01:36]} 20. Nf5 {[%clk 0:02:14]}  cxd5 {[%clk 0:01:32]} 21. Rxd5 {[%clk 0:02:11]}  Rxd5 {[%clk 0:01:31]} 22. cxd5 {[%clk 0:02:12]}  Kd7 {[%clk 0:01:24]} 23. e4 {[%clk 0:02:08]}  Bf8 {[%clk 0:01:17]} 24. Kd2 {[%clk 0:02:07]}  Rc8 {[%clk 0:01:17]} 25. Rc1 {[%clk 0:02:04]}  Rxc1 {[%clk 0:01:10]} 26. Kxc1 {[%clk 0:02:02]}  b5 {[%clk 0:01:09]} 27. Kc2 {[%clk 0:02:01]}  a6 {[%clk 0:01:05]} 28. Kb3 {[%clk 0:02:00]}  Kc7 {[%clk 0:01:02]} 29. a4 {[%clk 0:01:51]}  Kd7 {[%clk 0:01:01]} 30. a5 {[%clk 0:01:38]}  Kc7 {[%clk 0:00:54]} 31. Ne3 {[%clk 0:01:28]}  Kd6 {[%clk 0:00:47]} 32. Nc2 {[%clk 0:01:27]}  Kc5 {[%clk 0:00:45]} 33. Kc3 {[%clk 0:01:20]}  b4+ {[%clk 0:00:34]} 34. Nxb4 {[%clk 0:01:19]}  Kb5 {[%clk 0:00:35]} 35. Nc6 {[%clk 0:01:16]}  Kc5 {[%clk 0:00:28]} 36. b4+ {[%clk 0:01:10]}  Kb5 {[%clk 0:00:29]} 37. Kb3 {[%clk 0:01:07]}  Bd6 {[%clk 0:00:28]} 38. Na7# {[%clk 0:01:06]} 1-0


[Site "https://www.chess.com"]

[Event "Titled Tuesday Blitz January 17 Early 2023"]
[White "Rosenberg, Evan S"]
[Black "Biastoch, Bennet"]
[WhiteFideId "2019299"]
[BlackFideId "12939889"]
[WhiteElo "1956"]
[BlackElo "2257"]
[Result "1-0"]
[Round "03"]
[TimeControl "180+2"]
[Date "2023.01.17"]
[WhiteClock "0:00:06"]
[BlackClock "0:00:54"]

1. d4 {[%clk 0:03:00]}  d5 {[%clk 0:03:00]} 2. Nf3 {[%clk 0:03:00]}  Nf6 {[%clk 0:02:59]} 3. c3 {[%clk 0:03:01]}  c5 {[%clk 0:02:59]} 4. dxc5 {[%clk 0:03:01]}  Nc6 {[%clk 0:02:58]} 5. b4 {[%clk 0:02:55]}  b6 {[%clk 0:02:57]} 6. b5 {[%clk 0:02:29]}  Nb8 {[%clk 0:02:54]} 7. c6 {[%clk 0:02:29]}  e6 {[%clk 0:02:53]} 8. a4 {[%clk 0:02:17]}  Bc5 {[%clk 0:02:51]} 9. e3 {[%clk 0:02:17]}  O-O {[%clk 0:02:50]} 10. Nbd2 {[%clk 0:02:17]}  a6 {[%clk 0:02:47]} 11. Bb2 {[%clk 0:02:16]}  Ne8 {[%clk 0:02:31]} 12. c4 {[%clk 0:02:13]}  Nc7 {[%clk 0:02:30]} 13. Be2 {[%clk 0:01:49]}  dxc4 {[%clk 0:02:29]} 14. Bxc4 {[%clk 0:01:49]}  Qe7 {[%clk 0:02:14]} 15. O-O {[%clk 0:01:46]}  Rd8 {[%clk 0:02:14]} 16. Qc2 {[%clk 0:01:46]}  Nd5 {[%clk 0:02:12]} 17. Bxd5 {[%clk 0:01:38]}  Rxd5 {[%clk 0:02:10]} 18. Qc3 {[%clk 0:01:33]}  f6 {[%clk 0:02:10]} 19. Ne4 {[%clk 0:01:24]}  Bd6 {[%clk 0:02:06]} 20. Nxd6 {[%clk 0:01:23]}  Qxd6 {[%clk 0:02:06]} 21. Ba3 {[%clk 0:00:53]}  Qc7 {[%clk 0:01:57]} 22. e4 {[%clk 0:00:50]}  Rh5 {[%clk 0:01:51]} 23. e5 {[%clk 0:00:46]}  axb5 {[%clk 0:01:49]} 24. axb5 {[%clk 0:00:45]}  Ra5 {[%clk 0:01:46]} 25. Bd6 {[%clk 0:00:43]}  Qa7 {[%clk 0:01:30]} 26. Rxa5 {[%clk 0:00:42]}  bxa5 {[%clk 0:01:31]} 27. Bxb8 {[%clk 0:00:20]}  Qxb8 {[%clk 0:01:31]} 28. Qc5 {[%clk 0:00:20]}  fxe5 {[%clk 0:01:20]} 29. b6 {[%clk 0:00:20]}  g6 {[%clk 0:01:20]} 30. b7 {[%clk 0:00:17]}  Bxb7 {[%clk 0:01:21]} 31. cxb7 {[%clk 0:00:15]}  Qxb7 {[%clk 0:01:22]} 32. Nxe5 {[%clk 0:00:13]}  Qb8 {[%clk 0:01:21]} 33. f4 {[%clk 0:00:12]}  a4 {[%clk 0:01:21]} 34. Qe7 {[%clk 0:00:09]}  Rf5 {[%clk 0:01:16]} 35. Qxe6+ {[%clk 0:00:09]}  Kg7 {[%clk 0:01:16]} 36. Qe7+ {[%clk 0:00:09]}  Kg8 {[%clk 0:01:16]} 37. Rd1 {[%clk 0:00:06]}  Qb6+ {[%clk 0:01:12]} 38. Kh1 {[%clk 0:00:06]}  Rf8 {[%clk 0:01:13]} 39. Nd7 {[%clk 0:00:04]}  Rd8 {[%clk 0:00:55]} 40. h3 {[%clk 0:00:02]}  a3 {[%clk 0:00:52]} 41. Nxb6 {[%clk 0:00:01]}  Rxd1+ {[%clk 0:00:52]} 42. Kh2 {[%clk 0:00:02]}  a2 {[%clk 0:00:52]} 43. Qe6+ {[%clk 0:00:02]}  Kg7 {[%clk 0:00:52]} 44. Qxa2 {[%clk 0:00:03]}  Rd6 {[%clk 0:00:52]} 45. Qc4 {[%clk 0:00:03]}  Rf6 {[%clk 0:00:53]} 46. Qc7+ {[%clk 0:00:04]}  Rf7 {[%clk 0:00:54]} 47. Qe5+ {[%clk 0:00:04]}  Rf6 {[%clk 0:00:55]} 48. Nd5 {[%clk 0:00:04]}  Kh6 {[%clk 0:00:54]} 49. Qxf6 {[%clk 0:00:05]}  Kh5 {[%clk 0:00:54]} 50. Qg5# {[%clk 0:00:06]} 1-0


[Site "https://www.chess.com"]

[Event "Titled Tuesday Blitz January 17 Early 2023"]
[White "Degtiarev, Evgeny"]
[Black "Reprintsev, Alexander"]
[WhiteFideId "4149610"]
[BlackFideId "14100541"]
[WhiteElo "2385"]
[BlackElo "2253"]
[Result "0-1"]
[Round "03"]
[TimeControl "180+2"]
[Date "2023.01.17"]
[WhiteClock "0:00:08"]
[BlackClock "0:00:20"]

1. d4 {[%clk 0:03:00]}  d5 {[%clk 0:02:59]} 2. c4 {[%clk 0:03:00]}  e5 {[%clk 0:03:00]} 3. dxe5 {[%clk 0:03:00]}  d4 {[%clk 0:03:00]} 4. Nf3 {[%clk 0:02:59]}  Nc6 {[%clk 0:03:00]} 5. g3 {[%clk 0:03:00]}  Nge7 {[%clk 0:03:00]} 6. Bg2 {[%clk 0:03:00]}  Ng6 {[%clk 0:03:01]} 7. O-O {[%clk 0:02:57]}  Ngxe5 {[%clk 0:03:01]} 8. Nxe5 {[%clk 0:02:54]}  Nxe5 {[%clk 0:03:00]} 9. b3 {[%clk 0:02:54]}  a5 {[%clk 0:03:01]} 10. Nd2 {[%clk 0:02:54]}  Bc5 {[%clk 0:02:57]} 11. Bb2 {[%clk 0:02:51]}  O-O {[%clk 0:02:55]} 12. Ne4 {[%clk 0:02:50]}  Ba7 {[%clk 0:02:55]} 13. c5 {[%clk 0:02:50]}  Nc6 {[%clk 0:02:33]} 14. Rc1 {[%clk 0:02:45]}  Bf5 {[%clk 0:02:25]} 15. Nd2 {[%clk 0:02:45]}  Qe7 {[%clk 0:02:21]} 16. Bxc6 {[%clk 0:02:34]}  bxc6 {[%clk 0:02:21]} 17. Bxd4 {[%clk 0:02:34]}  Rfe8 {[%clk 0:02:20]} 18. e3 {[%clk 0:02:32]}  Rad8 {[%clk 0:01:58]} 19. Qf3 {[%clk 0:02:06]}  Qe6 {[%clk 0:01:56]} 20. Rfe1 {[%clk 0:01:55]}  Bg4 {[%clk 0:01:27]} 21. Qf4 {[%clk 0:01:33]}  h6 {[%clk 0:01:18]} 22. h4 {[%clk 0:01:32]}  Rd5 {[%clk 0:01:09]} 23. f3 {[%clk 0:01:20]}  Bh5 {[%clk 0:01:08]} 24. g4 {[%clk 0:01:20]}  Bg6 {[%clk 0:01:08]} 25. Kf2 {[%clk 0:01:14]}  h5 {[%clk 0:01:06]} 26. g5 {[%clk 0:00:43]}  Rf5 {[%clk 0:01:03]} 27. Qg3 {[%clk 0:00:39]}  Qe7 {[%clk 0:00:57]} 28. e4 {[%clk 0:00:33]}  Rxc5 {[%clk 0:00:56]} 29. Bxc5 {[%clk 0:00:32]}  Bxc5+ {[%clk 0:00:56]} 30. Kg2 {[%clk 0:00:31]}  Bd6 {[%clk 0:00:42]} 31. f4 {[%clk 0:00:22]}  Bb4 {[%clk 0:00:38]} 32. f5 {[%clk 0:00:16]}  Bxd2 {[%clk 0:00:37]} 33. fxg6 {[%clk 0:00:15]}  fxg6 {[%clk 0:00:37]} 34. Qd3 {[%clk 0:00:14]}  Bxc1 {[%clk 0:00:24]} 35. Rxc1 {[%clk 0:00:14]}  Kh7 {[%clk 0:00:23]} 36. Rxc6 {[%clk 0:00:13]}  Qe5 {[%clk 0:00:22]} 37. Rc2 {[%clk 0:00:08]}  Qf4 {[%clk 0:00:20]} 38. Qf3 {[%clk 0:00:07]}  Qxh4 {[%clk 0:00:20]} 39. Qg3 {[%clk 0:00:08]}  Qxe4+ {[%clk 0:00:20]} 0-1


[Site "https://www.chess.com"]

[Event "Titled Tuesday Blitz January 17 Early 2023"]
[White "Bas Mas, Jose Joaquin"]
[Black "Mammadzada, Gunay"]
[WhiteFideId "22219064"]
[BlackFideId "13403729"]
[WhiteElo "2197"]
[BlackElo "2449"]
[Result "0-1"]
[Round "03"]
[TimeControl "180+2"]
[Date "2023.01.17"]
[WhiteClock "0:00:08"]
[BlackClock "0:00:19"]

1. e4 {[%clk 0:03:00]}  c5 {[%clk 0:02:56]} 2. Nf3 {[%clk 0:03:01]}  d6 {[%clk 0:02:56]} 3. d4 {[%clk 0:03:01]}  cxd4 {[%clk 0:02:56]} 4. Nxd4 {[%clk 0:03:02]}  Nf6 {[%clk 0:02:57]} 5. Nc3 {[%clk 0:03:02]}  a6 {[%clk 0:02:57]} 6. h3 {[%clk 0:03:03]}  e6 {[%clk 0:02:57]} 7. g4 {[%clk 0:03:03]}  Nc6 {[%clk 0:02:49]} 8. Bg2 {[%clk 0:03:02]}  Qb6 {[%clk 0:02:48]} 9. Nb3 {[%clk 0:02:55]}  Be7 {[%clk 0:02:47]} 10. O-O {[%clk 0:02:55]}  Ne5 {[%clk 0:02:42]} 11. Qe2 {[%clk 0:02:42]}  O-O {[%clk 0:02:29]} 12. a4 {[%clk 0:02:23]}  Qc7 {[%clk 0:02:21]} 13. a5 {[%clk 0:02:16]}  Bd7 {[%clk 0:02:21]} 14. Kh1 {[%clk 0:01:49]}  Ng6 {[%clk 0:02:20]} 15. g5 {[%clk 0:01:37]}  Ne8 {[%clk 0:02:14]} 16. f4 {[%clk 0:01:37]}  Nh4 {[%clk 0:02:02]} 17. Nd4 {[%clk 0:01:37]}  Nxg2 {[%clk 0:02:02]} 18. Qxg2 {[%clk 0:01:37]}  Rc8 {[%clk 0:01:55]} 19. f5 {[%clk 0:01:31]}  Kh8 {[%clk 0:01:45]} 20. Be3 {[%clk 0:01:10]}  Qc4 {[%clk 0:01:09]} 21. Rg1 {[%clk 0:00:42]}  e5 {[%clk 0:00:50]} 22. Nf3 {[%clk 0:00:25]}  Bc6 {[%clk 0:00:46]} 23. Nd2 {[%clk 0:00:25]}  Qb4 {[%clk 0:00:46]} 24. f6 {[%clk 0:00:24]}  Bd8 {[%clk 0:00:38]} 25. h4 {[%clk 0:00:20]}  Qxb2 {[%clk 0:00:37]} 26. Nd1 {[%clk 0:00:13]}  Qxc2 {[%clk 0:00:36]} 27. h5 {[%clk 0:00:12]}  Rg8 {[%clk 0:00:31]} 28. g6 {[%clk 0:00:09]}  fxg6 {[%clk 0:00:19]} 29. hxg6 {[%clk 0:00:08]}  gxf6 {[%clk 0:00:19]} 0-1


[Site "https://www.chess.com"]

[Event "Titled Tuesday Blitz January 17 Early 2023"]
[White "Sohier, Julien"]
[Black "Podetti, Davide"]
[WhiteFideId "645346"]
[BlackFideId "893617"]
[WhiteElo "2214"]
[BlackElo "2281"]
[Result "1-0"]
[Round "03"]
[TimeControl "180+2"]
[Date "2023.01.17"]
[WhiteClock "0:00:19"]
[BlackClock "0:00:23"]

1. e4 {[%clk 0:03:00]}  e5 {[%clk 0:02:55]} 2. Nf3 {[%clk 0:03:00]}  Nc6 {[%clk 0:02:54]} 3. Bc4 {[%clk 0:03:00]}  Bc5 {[%clk 0:02:53]} 4. d3 {[%clk 0:02:59]}  Nf6 {[%clk 0:02:50]} 5. O-O {[%clk 0:02:59]}  d6 {[%clk 0:02:47]} 6. a4 {[%clk 0:02:58]}  a6 {[%clk 0:02:47]} 7. Re1 {[%clk 0:02:57]}  O-O {[%clk 0:02:46]} 8. h3 {[%clk 0:02:57]}  h6 {[%clk 0:02:46]} 9. c3 {[%clk 0:02:51]}  Ba7 {[%clk 0:02:43]} 10. Be3 {[%clk 0:02:48]}  Be6 {[%clk 0:02:39]} 11. Nbd2 {[%clk 0:02:47]}  Qd7 {[%clk 0:02:36]} 12. b4 {[%clk 0:02:38]}  Bxe3 {[%clk 0:02:35]} 13. Rxe3 {[%clk 0:02:39]}  a5 {[%clk 0:02:29]} 14. b5 {[%clk 0:02:37]}  Ne7 {[%clk 0:02:29]} 15. Qb3 {[%clk 0:02:25]}  Ng6 {[%clk 0:02:28]} 16. d4 {[%clk 0:02:16]}  Bxc4 {[%clk 0:02:03]} 17. Nxc4 {[%clk 0:02:13]}  Rfe8 {[%clk 0:02:03]} 18. Rd1 {[%clk 0:02:02]}  exd4 {[%clk 0:01:56]} 19. Rxd4 {[%clk 0:01:57]}  Qe6 {[%clk 0:01:52]} 20. b6 {[%clk 0:01:29]}  c6 {[%clk 0:01:19]} 21. Rxd6 {[%clk 0:01:27]}  Qe7 {[%clk 0:01:19]} 22. e5 {[%clk 0:01:16]}  Nd5 {[%clk 0:01:17]} 23. Re1 {[%clk 0:01:10]}  Ndf4 {[%clk 0:01:12]} 24. Red1 {[%clk 0:01:05]}  Nd5 {[%clk 0:01:02]} 25. R1xd5 {[%clk 0:00:41]}  cxd5 {[%clk 0:01:02]} 26. Rxd5 {[%clk 0:00:42]}  Rac8 {[%clk 0:00:35]} 27. Rxa5 {[%clk 0:00:39]}  Nf4 {[%clk 0:00:32]} 28. Rb5 {[%clk 0:00:23]}  Qe6 {[%clk 0:00:31]} 29. Nd6 {[%clk 0:00:21]}  Qg6 {[%clk 0:00:31]} 30. Nh4 {[%clk 0:00:19]}  Qg5 {[%clk 0:00:26]} 31. Qxf7+ {[%clk 0:00:18]}  Kh8 {[%clk 0:00:26]} 32. Qxf4 {[%clk 0:00:18]}  Qxf4 {[%clk 0:00:24]} 33. Ng6+ {[%clk 0:00:18]}  Kh7 {[%clk 0:00:23]} 34. Nxf4 {[%clk 0:00:19]} 1-0


[Site "https://www.chess.com"]

[Event "Titled Tuesday Blitz January 17 Early 2023"]
[White "Onslow, Alfie"]
[Black "Kostenko, Petr"]
[WhiteFideId "436976"]
[BlackFideId "13700669"]
[WhiteElo "2157"]
[BlackElo "2371"]
[Result "1/2-1/2"]
[Round "03"]
[TimeControl "180+2"]
[Date "2023.01.17"]
[WhiteClock "0:00:10"]
[BlackClock "0:00:13"]

1. e4 {[%clk 0:03:00]}  c6 {[%clk 0:02:59]} 2. Nf3 {[%clk 0:02:59]}  d5 {[%clk 0:02:59]} 3. exd5 {[%clk 0:02:59]}  cxd5 {[%clk 0:02:59]} 4. Ne5 {[%clk 0:03:00]}  e6 {[%clk 0:02:55]} 5. Bb5+ {[%clk 0:02:51]}  Nd7 {[%clk 0:02:54]} 6. O-O {[%clk 0:02:38]}  Bd6 {[%clk 0:02:36]} 7. d4 {[%clk 0:02:36]}  a6 {[%clk 0:02:34]} 8. Bxd7+ {[%clk 0:02:31]}  Bxd7 {[%clk 0:02:33]} 9. Qg4 {[%clk 0:02:26]}  g6 {[%clk 0:02:31]} 10. Nd2 {[%clk 0:02:03]}  Rc8 {[%clk 0:02:30]} 11. c3 {[%clk 0:02:03]}  Nf6 {[%clk 0:02:26]} 12. Qh4 {[%clk 0:01:54]}  O-O {[%clk 0:01:48]} 13. Ndf3 {[%clk 0:01:49]}  Ne4 {[%clk 0:01:45]} 14. Nxd7 {[%clk 0:01:27]}  Qxd7 {[%clk 0:01:42]} 15. Bh6 {[%clk 0:01:27]}  Rfe8 {[%clk 0:01:18]} 16. Rfe1 {[%clk 0:01:07]}  Be7 {[%clk 0:01:10]} 17. Qh3 {[%clk 0:01:02]}  f6 {[%clk 0:00:51]} 18. Nd2 {[%clk 0:00:57]}  Nxd2 {[%clk 0:00:47]} 19. Bxd2 {[%clk 0:00:58]}  Bd6 {[%clk 0:00:45]} 20. Re2 {[%clk 0:00:54]}  Re7 {[%clk 0:00:41]} 21. f4 {[%clk 0:00:54]}  Rce8 {[%clk 0:00:37]} 22. Rae1 {[%clk 0:00:53]}  a5 {[%clk 0:00:34]} 23. Qf3 {[%clk 0:00:51]}  Qa4 {[%clk 0:00:23]} 24. a3 {[%clk 0:00:37]}  Qb3 {[%clk 0:00:23]} 25. Be3 {[%clk 0:00:29]}  b5 {[%clk 0:00:23]} 26. Bf2 {[%clk 0:00:28]}  Kg7 {[%clk 0:00:22]} 27. Bh4 {[%clk 0:00:27]}  b4 {[%clk 0:00:20]} 28. axb4 {[%clk 0:00:27]}  axb4 {[%clk 0:00:20]} 29. g4 {[%clk 0:00:18]}  bxc3 {[%clk 0:00:20]} 30. bxc3 {[%clk 0:00:19]}  Qc4 {[%clk 0:00:18]} 31. Re3 {[%clk 0:00:18]}  Ba3 {[%clk 0:00:16]} 32. f5 {[%clk 0:00:16]}  exf5 {[%clk 0:00:15]} 33. Rxe7+ {[%clk 0:00:16]}  Rxe7 {[%clk 0:00:15]} 34. Rxe7+ {[%clk 0:00:15]}  Bxe7 {[%clk 0:00:15]} 35. gxf5 {[%clk 0:00:16]}  g5 {[%clk 0:00:14]} 36. Qe3 {[%clk 0:00:14]}  Bd6 {[%clk 0:00:14]} 37. Bg3 {[%clk 0:00:14]}  Bxg3 {[%clk 0:00:13]} 38. Qe7+ {[%clk 0:00:14]}  Kg8 {[%clk 0:00:13]} 39. Qe8+ {[%clk 0:00:14]}  Kg7 {[%clk 0:00:13]} 40. Qe7+ {[%clk 0:00:14]}  Kg8 {[%clk 0:00:13]} 41. hxg3 {[%clk 0:00:13]}  Qxc3 {[%clk 0:00:12]} 42. Qe8+ {[%clk 0:00:12]}  Kg7 {[%clk 0:00:12]} 43. Qe7+ {[%clk 0:00:12]}  Kg8 {[%clk 0:00:13]} 44. Qe6+ {[%clk 0:00:11]}  Kg7 {[%clk 0:00:13]} 45. Qe7+ {[%clk 0:00:10]}  Kg8 {[%clk 0:00:13]} 1/2-1/2


[Site "https://www.chess.com"]

[Event "Titled Tuesday Blitz January 17 Early 2023"]
[White "Poeta, Caio Medeiros"]
[Black "Riverol, Jose"]
[WhiteFideId "2142660"]
[BlackFideId "3000427"]
[WhiteElo "2088"]
[BlackElo "2304"]
[Result "1-0"]
[Round "03"]
[TimeControl "180+2"]
[Date "2023.01.17"]
[WhiteClock "0:00:54"]
[BlackClock "0:00:14"]

1. d4 {[%clk 0:03:00]}  Nf6 {[%clk 0:02:59]} 2. c4 {[%clk 0:03:01]}  g6 {[%clk 0:02:59]} 3. Nc3 {[%clk 0:03:01]}  d5 {[%clk 0:02:59]} 4. cxd5 {[%clk 0:03:01]}  Nxd5 {[%clk 0:03:00]} 5. e4 {[%clk 0:03:02]}  Nxc3 {[%clk 0:03:00]} 6. bxc3 {[%clk 0:03:03]}  Bg7 {[%clk 0:03:01]} 7. Be3 {[%clk 0:03:04]}  c5 {[%clk 0:03:01]} 8. Rc1 {[%clk 0:03:05]}  O-O {[%clk 0:03:00]} 9. Nf3 {[%clk 0:03:04]}  cxd4 {[%clk 0:02:38]} 10. cxd4 {[%clk 0:03:03]}  Qa5+ {[%clk 0:02:38]} 11. Qd2 {[%clk 0:03:03]}  Qxd2+ {[%clk 0:02:38]} 12. Nxd2 {[%clk 0:02:59]}  Rd8 {[%clk 0:02:36]} 13. Nb3 {[%clk 0:02:59]}  Nc6 {[%clk 0:02:34]} 14. d5 {[%clk 0:02:59]}  Ne5 {[%clk 0:02:34]} 15. Be2 {[%clk 0:02:49]}  e6 {[%clk 0:01:52]} 16. f4 {[%clk 0:02:48]}  Bh6 {[%clk 0:01:47]} 17. Kf2 {[%clk 0:02:39]}  Nd7 {[%clk 0:01:41]} 18. dxe6 {[%clk 0:02:34]}  fxe6 {[%clk 0:01:40]} 19. Rhd1 {[%clk 0:02:33]}  Rf8 {[%clk 0:01:15]} 20. Rxc8 {[%clk 0:02:06]}  Raxc8 {[%clk 0:01:14]} 21. Rxd7 {[%clk 0:02:06]}  Bxf4 {[%clk 0:01:14]} 22. Bxf4 {[%clk 0:02:05]}  Rxf4+ {[%clk 0:01:15]} 23. Ke3 {[%clk 0:02:05]}  Rf7 {[%clk 0:01:15]} 24. Rd2 {[%clk 0:01:46]}  a6 {[%clk 0:00:55]} 25. Bg4 {[%clk 0:01:45]}  Re8 {[%clk 0:00:46]} 26. Rd6 {[%clk 0:01:39]}  Rfe7 {[%clk 0:00:39]} 27. Nd4 {[%clk 0:01:38]}  Kf7 {[%clk 0:00:37]} 28. Nf3 {[%clk 0:01:36]}  Rc7 {[%clk 0:00:25]} 29. Ng5+ {[%clk 0:01:10]}  Ke7 {[%clk 0:00:17]} 30. Rxe6+ {[%clk 0:01:08]}  Kd8 {[%clk 0:00:17]} 31. Rd6+ {[%clk 0:01:03]}  Ke7 {[%clk 0:00:17]} 32. e5 {[%clk 0:00:57]}  Rc3+ {[%clk 0:00:17]} 33. Kd4 {[%clk 0:00:54]}  Ra3 {[%clk 0:00:14]} 34. Rd7+ {[%clk 0:00:54]} 1-0


[Site "https://www.chess.com"]

[Event "Titled Tuesday Blitz January 17 Early 2023"]
[White "parintele_chess"]
[Black "Baches Garcia, Guillermo"]
[BlackFideId "2209764"]
[WhiteElo "2259"]
[BlackElo "2327"]
[Result "1-0"]
[Round "03"]
[TimeControl "180+2"]
[Date "2023.01.17"]
[WhiteClock "0:01:10"]
[BlackClock "0:00:33"]

1. d4 {[%clk 0:02:59]}  Nf6 {[%clk 0:03:00]} 2. Bf4 {[%clk 0:02:59]}  b6 {[%clk 0:02:58]} 3. Nf3 {[%clk 0:02:58]}  Bb7 {[%clk 0:02:58]} 4. e3 {[%clk 0:02:57]}  e6 {[%clk 0:02:58]} 5. Be2 {[%clk 0:02:57]}  c5 {[%clk 0:02:59]} 6. c3 {[%clk 0:02:55]}  cxd4 {[%clk 0:02:59]} 7. exd4 {[%clk 0:02:54]}  d6 {[%clk 0:02:58]} 8. O-O {[%clk 0:02:54]}  Be7 {[%clk 0:02:58]} 9. Nbd2 {[%clk 0:02:54]}  O-O {[%clk 0:02:58]} 10. h3 {[%clk 0:02:53]}  Nbd7 {[%clk 0:02:57]} 11. Re1 {[%clk 0:02:51]}  a6 {[%clk 0:02:57]} 12. a4 {[%clk 0:02:46]}  Qc7 {[%clk 0:02:57]} 13. Bd3 {[%clk 0:02:39]}  Rfe8 {[%clk 0:02:57]} 14. Ng5 {[%clk 0:02:36]}  h6 {[%clk 0:02:50]} 15. Nge4 {[%clk 0:02:35]}  Nd5 {[%clk 0:02:36]} 16. Bh2 {[%clk 0:02:31]}  N7f6 {[%clk 0:02:34]} 17. Nxf6+ {[%clk 0:02:18]}  Nxf6 {[%clk 0:02:34]} 18. Ne4 {[%clk 0:02:18]}  Qc6 {[%clk 0:02:22]} 19. Nxf6+ {[%clk 0:02:09]}  Bxf6 {[%clk 0:02:22]} 20. Be4 {[%clk 0:02:09]}  d5 {[%clk 0:02:22]} 21. Bc2 {[%clk 0:02:09]}  b5 {[%clk 0:02:10]} 22. axb5 {[%clk 0:02:04]}  axb5 {[%clk 0:02:10]} 23. Qd3 {[%clk 0:02:04]}  g6 {[%clk 0:02:06]} 24. Bf4 {[%clk 0:02:04]}  Bg7 {[%clk 0:02:00]} 25. Qe3 {[%clk 0:01:58]}  Kh7 {[%clk 0:01:56]} 26. Be5 {[%clk 0:01:55]}  b4 {[%clk 0:01:52]} 27. h4 {[%clk 0:01:37]}  bxc3 {[%clk 0:01:46]} 28. Bxg7 {[%clk 0:01:28]}  Kxg7 {[%clk 0:01:43]} 29. bxc3 {[%clk 0:01:27]}  Rxa1 {[%clk 0:01:35]} 30. Rxa1 {[%clk 0:01:26]}  Ra8 {[%clk 0:01:26]} 31. Rxa8 {[%clk 0:01:26]}  Bxa8 {[%clk 0:01:26]} 32. h5 {[%clk 0:01:26]}  g5 {[%clk 0:01:22]} 33. Qe5+ {[%clk 0:01:17]}  f6 {[%clk 0:01:06]} 34. Qb8 {[%clk 0:01:13]}  Qxc3 {[%clk 0:00:33]} 35. Qa7+ {[%clk 0:01:10]} 1-0


[Site "https://www.chess.com"]

[Event "Titled Tuesday Blitz January 17 Early 2023"]
[White "Boder, Jan"]
[Black "Kuchava, Ana"]
[WhiteFideId "16243226"]
[BlackFideId "13605348"]
[WhiteElo "2294"]
[BlackElo "2101"]
[Result "1-0"]
[Round "03"]
[TimeControl "180+2"]
[Date "2023.01.17"]
[WhiteClock "0:01:58"]
[BlackClock "0:00:14"]

1. c4 {[%clk 0:03:00]}  e6 {[%clk 0:02:59]} 2. g3 {[%clk 0:03:01]}  Nf6 {[%clk 0:02:53]} 3. Nf3 {[%clk 0:03:00]}  d5 {[%clk 0:02:51]} 4. Bg2 {[%clk 0:03:00]}  Be7 {[%clk 0:02:41]} 5. O-O {[%clk 0:03:01]}  O-O {[%clk 0:02:39]} 6. d4 {[%clk 0:02:59]}  c6 {[%clk 0:02:35]} 7. Nc3 {[%clk 0:02:55]}  b6 {[%clk 0:02:33]} 8. b3 {[%clk 0:02:54]}  Bb7 {[%clk 0:02:32]} 9. Qd3 {[%clk 0:02:54]}  Nbd7 {[%clk 0:02:25]} 10. Bb2 {[%clk 0:02:54]}  c5 {[%clk 0:02:02]} 11. e3 {[%clk 0:02:50]}  cxd4 {[%clk 0:01:58]} 12. Nxd4 {[%clk 0:02:48]}  Nc5 {[%clk 0:01:58]} 13. Qe2 {[%clk 0:02:23]}  Rc8 {[%clk 0:01:38]} 14. Rfd1 {[%clk 0:02:22]}  Qc7 {[%clk 0:01:00]} 15. cxd5 {[%clk 0:02:15]}  Nxd5 {[%clk 0:00:44]} 16. Nxd5 {[%clk 0:02:13]}  Bxd5 {[%clk 0:00:34]} 17. Bxd5 {[%clk 0:02:13]}  exd5 {[%clk 0:00:35]} 18. Nf5 {[%clk 0:02:13]}  f6 {[%clk 0:00:25]} 19. Qg4 {[%clk 0:02:03]}  Bd8 {[%clk 0:00:17]} 20. Rxd5 {[%clk 0:02:00]}  Qf7 {[%clk 0:00:14]} 21. Nh6+ {[%clk 0:01:58]} 1-0


[Site "https://www.chess.com"]